bitfinex/quotes_SOLUSD_20260217
["timestamp","ask_amount","ask_price","bid_price","bid_amount"]
[1771305480023,11.59850611,86.218,86.177,0.96234225]
[1771305480024,0.95212562,86.199,86.177,0.96234225]
[1771305480427,0.95212562,86.23,86.181,0.96234225]
[1771305480724,3.29566686,86.22,86.181,0.96234225]
[1771305481242,3.29566686,86.22,86.183,0.96234225]
[1771305482446,4.24779248,86.22,86.183,0.96234225]
[1771305483252,0.95212562,86.209,86.185,0.96234225]
[1771305483923,3.29566686,86.22,86.185,0.96234225]
[1771305484139,0.95212562,86.209,86.185,0.96234225]
[1771305485045,3.29566686,86.21,86.185,0.96234225]
[1771305485242,11.59837158,86.219,86.187,0.96234225]
[1771305485434,0.95212562,86.218,86.187,0.96234225]
[1771305486347,11.59837158,86.219,86.187,0.96234225]
[1771305486348,0.95212562,86.209,86.187,0.96234225]
[1771305487246,3.29566686,86.21,86.189,0.96234225]
[1771305489050,0.95212562,86.209,86.189,0.96234225]
[1771305489435,0.95212562,86.209,86.181,0.96234225]
[1771305489642,3.29566686,86.2,86.174,0.96234225]
[1771305489947,3.29566686,86.21,86.174,0.96234225]
[1771305491247,3.29566686,86.21,86.176,0.96234225]
[1771305491458,3.29566686,86.21,86.175,40.61502755]
[1771305491459,0.95212562,86.209,86.18,0.96234225]
[1771305493156,3.29468524,86.21,86.18,0.96234225]
[1771305493655,3.29468524,86.22,86.182,0.96234225]
[1771305494152,4.23450355,86.22,86.182,0.96234225]
[1771305495856,0.93981831,86.219,86.184,0.91403341]
[1771305496035,3.29468524,86.21,86.184,0.91403341]
[1771305496641,12.53818989,86.219,86.184,0.91403341]
[1771305497154,12.53818989,86.219,86.186,0.91403341]
[1771305497357,0.93981831,86.218,86.186,0.91403341]
[1771305498560,3.29468524,86.22,86.186,0.91403341]
[1771305498757,3.29468524,86.21,86.186,0.91403341]
[1771305498940,3.29468524,86.22,86.186,0.91403341]
[1771305499346,3.29468524,86.22,86.188,0.91403341]
[1771305500258,0.93981831,86.219,86.188,0.91403341]
[1771305500457,3.29468524,86.22,86.188,0.91403341]
[1771305503161,3.29468524,86.22,86.19,0.91403341]
[1771305505561,3.29468524,86.22,86.192,0.91403341]
[1771305505768,4.23450355,86.23,86.192,0.91403341]
[1771305506347,0.93981831,86.229,86.192,0.91403341]
[1771305506872,3.29468524,86.23,86.194,0.91403341]
[1771305507058,17.88,86.239,86.203,0.91403341]
[1771305507260,0.93981831,86.244,86.211,0.91403341]
[1771305507569,0.93981831,86.249,86.211,0.91403341]
[1771305509762,0.93981831,86.249,86.201,5.36086188]
[1771305509763,0.93981831,86.229,86.212,11.59931332]
[1771305510266,0.93981831,86.229,86.202,29.00163429]
[1771305510267,0.93981831,86.219,86.182,0.91403341]
[1771305510460,0.93981831,86.199,86.176,0.91403341]
[1771305510659,3.29468524,86.2,86.176,0.91403341]
[1771305511667,144.93089692,86.248,86.168,29.01296176]
[1771305511668,4.23450355,86.22,86.183,0.91403341]
[1771305512155,0.93981831,86.219,86.183,0.91403341]
[1771305514365,0.93981831,86.219,86.185,0.91403341]
[1771305514568,17.86,86.234,86.173,0.91403341]
[1771305514569,0.93981831,86.209,86.173,0.91403341]
[1771305515867,3.29468524,86.19,86.172,11.60469758]
[1771305516165,0.93981831,86.189,86.172,11.60469758]
[1771305516870,0.93981831,86.189,86.163,11.60590972]
[1771305517085,0.93981831,86.189,86.163,12.51994313]
[1771305517377,0.93981831,86.189,86.15,0.1]
[1771305517378,0.93981831,86.169,86.15,0.1]
[1771305517556,3.29468524,86.16,86.15,0.1]
[1771305518467,0.93981831,86.169,86.15,0.1]
[1771305518870,3.29468524,86.17,86.15,1.01403341]
[1771305519175,0.93981831,86.176,86.15,1.01403341]
[1771305519766,3.29468524,86.17,86.15,1.01403341]
[1771305522869,3.29468524,86.17,86.15,12.62165919]
[1771305523073,3.29468524,86.16,86.15,0.1]
[1771305525569,4.29754473,86.17,86.15,0.1]
[1771305525973,1.00285949,86.169,86.15,0.1]
[1771305526164,3.29468524,86.17,86.15,1.07742864]
[1771305527676,17.84,86.186,86.152,0.97742864]
[1771305527677,3.29468524,86.18,86.152,0.97742864]
[1771305527878,4.29754473,86.18,86.152,0.97742864]
[1771305528050,3.29468524,86.18,86.152,0.97742864]
[1771305528255,4.29754473,86.18,86.152,0.97742864]
[1771305528475,1.00285949,86.179,86.152,0.97742864]
[1771305529171,1.00285949,86.179,86.15,0.1]
[1771305529172,1.00285949,86.169,86.15,0.1]
[1771305530681,3.29468524,86.17,86.15,1.02607999]
[1771305532183,3.29468524,86.17,86.151,0.92607999]
[1771305533477,3.29468524,86.17,86.153,0.92607999]
[1771305533677,0.94142562,86.176,86.153,0.92607999]
[1771305533875,3.29468524,86.18,86.153,0.92607999]
[1771305534080,0.94142562,86.184,86.153,0.92607999]
[1771305534289,3.29468524,86.18,86.153,0.92607999]
[1771305535469,3.29468524,86.18,86.154,11.60712213]
[1771305535671,3.29468524,86.18,86.155,0.92607999]
[1771305537086,0.94142562,86.179,86.155,0.92607999]
[1771305537959,0.94142562,86.169,86.154,11.60712213]
[1771305538175,0.94142562,86.159,86.15,0.1]
[1771305538362,0.94142562,86.159,86.147,11.60806052]
[1771305539278,0.94142562,86.159,86.142,11.60873905]
[1771305539488,3.29468524,86.16,86.143,0.92607999]
[1771305539788,3.29468524,86.17,86.143,0.92607999]
[1771305540285,3.29468524,86.18,86.143,0.92607999]
[1771305540779,0.94142562,86.185,86.143,0.92607999]
[1771305540984,0.94142562,86.192,86.151,0.92607999]
[1771305541181,3.29468524,86.19,86.153,0.92607999]
[1771305541671,4.23611086,86.2,86.161,0.92607999]
[1771305542183,3.29468524,86.2,86.161,0.92607999]
[1771305542491,3.29468524,86.2,86.169,0.92607999]
[1771305542685,17.78,86.207,86.171,0.92607999]
[1771305542888,3.29468524,86.2,86.171,0.92607999]
[1771305543388,0.94142562,86.219,86.173,0.92607999]
[1771305543586,0.94142562,86.219,86.179,0.92607999]
[1771305544791,0.94142562,86.219,86.181,0.92607999]
[1771305546595,3.29468524,86.22,86.183,0.92607999]
[1771305546796,0.94142562,86.219,86.183,0.92607999]
[1771305546995,11.59780707,86.224,86.183,0.92607999]
[1771305546996,4.23611086,86.21,86.183,0.92607999]
[1771305548584,4.23611086,86.21,86.184,11.60308177]
[1771305548783,4.23611086,86.21,86.185,0.92607999]
[1771305549598,0.94142562,86.21,86.185,0.92607999]
[1771305550878,0.94142562,86.21,86.187,0.92607999]
[1771305551996,4.23573187,86.21,86.187,0.92607999]
[1771305552603,0.94142562,86.209,86.187,0.92607999]
[1771305552907,0.94142562,86.209,86.188,11.60254327]
[1771305553108,0.94142562,86.209,86.188,12.52862326]
[1771305553321,3.29430625,86.22,86.189,0.92607999]
[1771305553600,0.94142562,86.224,86.191,0.92607999]
[1771305554592,3.29430625,86.21,86.188,11.60254327]
[1771305554804,1.01564144,86.209,86.188,11.60254327]
[1771305555188,1.01564144,86.199,86.172,0.993605]
[1771305555796,1.01564144,86.209,86.172,0.993605]
[1771305555997,1.01564144,86.199,86.172,0.993605]
[1771305556895,1.01564144,86.199,86.168,0.993605]
[1771305557487,1.01564144,86.199,86.17,0.993605]
[1771305558202,46.69696248,86.216,86.164,0.993605]
[1771305558203,1.01564144,86.189,86.164,0.993605]
[1771305559091,1.01564144,86.189,86.165,11.60564034]
[1771305560316,1.01564144,86.189,86.158,0.993605]
[1771305561585,1.01564144,86.179,86.151,12.60113132]
[1771305561786,1.01564144,86.179,86.152,0.993605]
[1771305562509,3.29430625,86.18,86.151,40.62634212]
[1771305562510,3.29430625,86.17,86.153,11.60725685]
[1771305562716,1.01564144,86.169,86.153,11.60725685]
[1771305564823,1.01564144,86.179,86.153,0.993605]
[1771305565533,1.01564144,86.187,86.153,0.993605]
[1771305565695,3.29430625,86.19,86.153,0.993605]
[1771305566095,4.30994769,86.19,86.153,0.993605]
[1771305566295,1.01564144,86.189,86.153,0.993605]
[1771305567408,1.01564144,86.189,86.154,11.60712213]
[1771305567617,1.01564144,86.179,86.154,11.60712213]
[1771305568498,3.29430625,86.17,86.154,11.60712213]
[1771305568697,1.01564144,86.169,86.154,11.60712213]
[1771305569615,1.01564144,86.169,86.149,11.60779579]
[1771305570819,1.01564144,86.159,86.142,11.60873905]
[1771305571719,1.01564144,86.159,86.14,0.1]
[1771305571919,1.01564144,86.159,86.14,1.093605]
[1771305573214,3.29430625,86.18,86.141,0.993605]
[1771305573718,1.01564144,86.179,86.143,0.993605]
[1771305574809,1.01564144,86.169,86.143,0.993605]
[1771305575111,3.29430625,86.16,86.143,0.993605]
[1771305576414,3.29430625,86.16,86.144,11.60846953]
[1771305576816,3.29430625,86.16,86.14,0.1]
[1771305577021,3.29430625,86.16,86.13,29.02567477]
[1771305577022,1.01564144,86.149,86.107,11.61345767]
[1771305577211,1.01564144,86.149,86.06,0.1]
[1771305577212,1.01564144,86.119,86.084,0.993605]
[1771305577410,3.29430625,86.1,86.085,0.993605]
[1771305577711,30.0,86.143,86.085,0.993605]
[1771305577712,3.29430625,86.11,86.085,0.993605]
[1771305577915,3.29430625,86.11,86.068,29.18863314]
[1771305577916,3.29430625,86.1,86.078,0.993605]
[1771305578224,30.0,86.143,86.06,3.39430625]
[1771305578225,40.63200176,86.139,86.08,3.29430625]
[1771305578427,3.29430625,86.11,86.081,0.993605]
[1771305578613,1.01564144,86.109,86.07,3.29430625]
[1771305578809,1.01564144,86.109,86.071,0.993605]
[1771305579012,17.6,86.122,86.067,11.61885507]
[1771305579013,1.01564144,86.121,86.081,0.993605]
[1771305579208,4.30994769,86.11,86.081,0.993605]
[1771305579419,1.01564144,86.109,86.074,0.993605]
[1771305579618,1.01564144,86.118,86.081,0.993605]
[1771305579828,3.29430625,86.11,86.081,0.993605]
[1771305580206,3.29430625,86.11,86.083,0.993605]
[1771305581025,1.01564144,86.099,86.069,12.61209576]
[1771305581338,11.61318793,86.109,86.06,3.39430625]
[1771305581339,1.01564144,86.089,86.06,1.093605]
[1771305581519,1.01564144,86.079,86.06,0.1]
[1771305581723,3.29430625,86.07,86.045,11.62179162]
[1771305581918,8.26167365,86.08,86.046,0.993605]
[1771305582327,1.01564144,86.079,86.048,0.993605]
[1771305582624,1.01564144,86.059,86.035,11.62310096]
[1771305583021,8.26167365,86.08,86.041,0.993605]
[1771305583216,9.27731509,86.08,86.041,0.993605]
[1771305583423,1.01564144,86.069,86.035,11.62310096]
[1771305583621,8.26167365,86.06,86.035,11.62310096]
[1771305584032,1.01564144,86.08,86.036,0.993605]
[1771305584238,1.01634899,86.069,86.037,11.62290642]
[1771305584629,1.01634899,86.069,86.04,9.28212237]
[1771305585214,1.01634899,86.069,86.041,1.02044872]
[1771305585420,8.26167365,86.05,86.021,1.02044872]
[1771305586330,8.26167365,86.05,86.022,11.62493315]
[1771305586534,1.01634899,86.052,86.023,1.02044872]
[1771305586731,8.26167365,86.05,86.023,1.02044872]
[1771305586936,1.01634899,86.029,86.001,5.36086188]
[1771305587145,1.01634899,86.037,86.001,40.69720119]
[1771305587638,30.0,86.049,86.02,8.26167365]
[1771305587839,30.0,86.049,86.03,8.26167365]
[1771305588014,1.01634899,86.066,86.03,8.26167365]
[1771305588340,1.01634899,86.059,86.02,8.26167365]
[1771305588519,1.01634899,86.059,86.015,5.50302345]
[1771305588840,1.01634899,86.059,86.02,8.26167365]
[1771305589041,1.01634899,86.059,86.03,8.26167365]
[1771305589249,1.01634899,86.059,86.031,1.02044872]
[1771305589538,1.01634899,86.075,86.041,1.02044872]
[1771305589743,1.00514534,86.074,86.041,1.02044872]
[1771305590627,1.00514534,86.074,86.042,12.66275603]
[1771305590836,1.00514534,86.074,86.043,1.04052503]
[1771305591030,1.00514534,86.084,86.051,1.04052503]
[1771305591342,1.00514534,86.084,86.042,40.6778085]
[1771305591343,1.00514534,86.059,86.031,11.62371703]
[1771305591646,1.00514534,86.059,86.032,1.04052503]
[1771305591944,1.00514534,86.069,86.041,1.04052503]
[1771305592724,1.00514534,86.069,86.043,1.04052503]
[1771305593123,1.00514534,86.069,86.031,35.46067949]
[1771305593323,1.00514534,86.049,86.01,8.26167365]
[1771305593545,1.00514534,86.049,86.011,1.04052503]
[1771305593844,1.00514534,86.029,86.001,1.04052503]
[1771305594630,1.00514534,86.029,86.002,11.62763656]
[1771305594840,1.00514534,86.029,85.992,5.36086188]
[1771305595043,1.00514534,86.009,85.975,1.04052503]
[1771305595245,1.00514534,85.989,85.96,11.63331782]
[1771305595434,1.00514534,86.027,85.971,1.04052503]
[1771305595631,1.00514534,86.009,85.971,1.04052503]
[1771305596342,1.00514534,86.028,85.991,1.04052503]
[1771305596928,1.00514534,86.028,85.992,11.62898874]
[1771305597123,1.00514534,86.028,86.001,1.04052503]
[1771305598230,1.00514534,86.028,86.001,12.66829392]
[1771305599426,1.00514534,86.038,86.002,1.04052503]
[1771305599738,1.00514534,86.047,86.011,1.04052503]
[1771305600445,1.00514534,86.047,86.021,1.04052503]
[1771305600742,1.00514534,86.067,86.031,1.04052503]
[1771305601444,1.00514534,86.067,86.031,12.66411004]
[1771305601947,1.00514534,86.067,86.032,1.04052503]
[1771305602444,1.00514534,86.069,86.031,11.62358501]
[1771305602648,1.00514534,86.059,86.031,11.62358501]
[1771305602956,1.00514534,86.059,86.025,11.62446266]
[1771305603130,1.00514534,86.059,86.025,12.66498769]
[1771305603450,1.00514534,86.059,86.026,1.04052503]
[1771305603823,1.00514534,86.059,86.025,11.62446266]
[1771305603824,1.00514534,86.076,86.041,1.04052503]
[1771305604250,1.00514534,86.069,86.028,1.04052503]
[1771305604555,1.00514534,86.069,86.03,8.26167365]
[1771305604858,1.00514534,86.069,86.031,1.04052503]
[1771305605225,1.00514534,86.039,86.01,8.26167365]
[1771305605443,1.00514534,86.039,86.004,1.04052503]
[1771305605636,1.00514534,86.038,86.005,11.62723097]
[1771305606231,1.00514534,86.038,86.011,1.04052503]
[1771305606731,1.00514534,86.029,85.994,1.04052503]
[1771305606941,1.00514534,86.029,86.0,3.30773909]
[1771305607145,1.00514534,86.029,86.001,1.04052503]
[1771305607450,1.00514534,86.039,86.001,1.04052503]
[1771305607653,1.00514534,86.038,86.003,1.04052503]
[1771305608033,1.00514534,86.047,86.011,1.04052503]
[1771305608251,0.97485534,86.047,86.011,1.04052503]
[1771305608454,0.97485534,86.047,86.021,1.04052503]
[1771305608654,8.26940326,86.06,86.03,8.26940326]
[1771305608858,8.26940326,86.06,86.031,1.04052503]
[1771305609351,11.61891721,86.067,86.031,1.04052503]
[1771305609748,11.61891721,86.067,86.032,11.62358192]
[1771305610135,11.61891721,86.067,86.032,12.66410695]
[1771305610337,1.00514534,86.066,86.032,12.66410695]
[1771305610659,1.00514534,86.066,86.033,1.04052503]
[1771305611364,1.00514534,86.073,86.041,1.04052503]
[1771305611664,1.00514534,86.059,86.031,1.04052503]
[1771305612163,1.00514534,86.059,86.031,12.66417748]
[1771305613041,1.00514534,86.059,86.032,1.04052503]
[1771305613556,1.00514534,86.069,86.032,1.04052503]
[1771305613741,1.00514534,86.069,86.041,12.66279287]
[1771305613933,1.00514534,86.069,86.032,1.04052503]
[1771305614135,1.20287526,86.067,86.032,1.04052503]
[1771305614459,11.61872008,86.068,86.031,11.62371703]
[1771305614460,1.20287526,86.059,86.031,11.62371703]
[1771305614655,1.20287526,86.059,86.024,11.62453615]
[1771305615265,1.20287526,86.059,86.024,12.78827671]
[1771305615755,11.62007018,86.058,86.024,12.78827671]
[1771305615958,1.20287526,86.057,86.024,12.78827671]
[1771305617259,1.20287526,86.057,86.025,1.16374056]
[1771305617841,1.20287526,86.057,86.024,11.62453615]
[1771305618251,1.20287526,86.055,86.024,11.62453615]
[1771305618760,1.20287526,86.055,85.855,32.58464015]
[1771305618761,1.20287526,86.029,85.991,1.16374056]
[1771305619171,1.20287526,86.029,86.001,1.16374056]
[1771305620042,1.20287526,86.019,85.99,11.62925921]
[1771305620269,1.20287526,86.019,85.98,24.7028031]
[1771305620270,1.20287526,86.019,85.984,12.79381127]
[1771305620445,11.62547373,86.018,85.984,12.79381127]
[1771305620649,1.20287526,86.009,85.984,11.63007071]
[1771305620851,1.20287526,86.009,85.979,11.63066681]
[1771305621465,1.20287526,86.009,85.98,1.16374056]
[1771305621772,8.2628031,86.01,85.979,11.63066681]
[1771305621773,1.20287526,86.039,86.001,1.16374056]
[1771305622148,1.20287526,86.039,85.979,11.63066681]
[1771305622149,1.20287526,86.029,85.991,1.16374056]
[1771305622342,1.20287526,86.029,85.993,1.16374056]
[1771305622577,1.20287526,86.027,85.984,1.16374056]
[1771305622740,1.20287526,86.009,85.977,1.16374056]
[1771305622944,1.20287526,86.027,85.991,1.16374056]
[1771305624046,1.20287526,86.027,86.001,1.16374056]
[1771305624365,1.20287526,86.019,85.986,1.16374056]
[1771305625458,1.20287526,86.032,86.001,1.16374056]
[1771305626054,1.20287526,86.029,86.001,1.16374056]
[1771305626446,1.20287526,86.029,86.002,12.79137712]
[1771305626647,1.20287526,86.029,86.002,11.62763656]
[1771305626847,1.20287526,86.019,85.994,11.62871828]
[1771305627057,1.20287526,86.019,85.995,1.16374056]
[1771305627258,1.20287526,86.027,85.995,1.16374056]
[1771305628470,1.20287526,86.027,85.996,11.62844783]
[1771305628667,1.20287526,86.019,85.99,11.6291374]
[1771305628864,1.20287526,86.019,85.977,1.16374056]
[1771305629351,1.20287526,86.019,85.981,1.16374056]
[1771305629547,1.20287526,85.989,85.957,1.16374056]
[1771305629775,1.20287526,85.997,85.961,1.16374056]
[1771305630271,9.54725393,86.01,85.971,1.16374056]
[1771305630450,1.28445083,86.008,85.973,1.27764256]
[1771305631052,1.28445083,86.017,85.981,1.27764256]
[1771305631268,1.28445083,86.009,85.981,1.27764256]
[1771305631766,1.28445083,86.019,85.981,1.27764256]
[1771305632663,9.54725393,86.01,85.983,1.27764256]
[1771305633271,1.28445083,86.019,85.99,8.2628031]
[1771305633574,1.28445083,86.032,86.001,1.27764256]
[1771305633774,1.28445083,86.029,86.001,1.27764256]
[1771305634074,1.28445083,86.039,86.001,1.27764256]
[1771305634578,1.28445083,86.039,86.003,1.27764256]
[1771305635272,1.28445083,86.057,86.021,1.27764256]
[1771305635475,1.28445083,86.057,86.002,145.34545706]
[1771305635476,1.28445083,86.049,86.013,1.27764256]
[1771305636481,1.28445083,86.039,86.003,1.27764256]
[1771305636776,1.28445083,86.029,85.999,11.62798528]
[1771305637169,1.28445083,86.029,85.998,12.90581995]
[1771305637476,1.28445083,86.019,85.981,1.27764256]
[1771305637692,1.28445083,86.019,85.983,12.90781769]
[1771305637868,1.28445083,86.019,85.984,1.27764256]
[1771305638956,1.28445083,86.019,85.985,11.62993545]
[1771305639161,1.28445083,86.017,85.985,11.62993545]
[1771305639366,1.28445083,86.017,85.985,12.90757801]
[1771305639871,1.28445083,86.009,85.98,11.63053126]
[1771305640274,8.2628031,85.99,85.957,12.91136639]
[1771305640467,1.28445083,85.989,85.96,8.2628031]
[1771305640784,1.28445083,85.989,85.961,1.27764256]
[1771305640974,1.28445083,85.989,85.962,11.63304716]
[1771305641473,1.28445083,85.979,85.953,11.63418689]
[1771305641664,1.28445083,85.979,85.954,1.27764256]
[1771305641867,1.28445083,85.979,85.953,11.63418689]
[1771305642268,1.28445083,85.979,85.951,11.63453595]
[1771305643068,1.28445083,85.987,85.951,1.27764256]
[1771305643589,1.28445083,86.009,85.961,1.27764256]
[1771305643776,1.28445083,86.009,85.952,5.36086188]
[1771305643777,1.28445083,86.009,85.971,1.27764256]
[1771305644089,1.28445083,86.009,85.952,5.36086188]
[1771305644090,1.22885802,86.018,85.981,1.27764256]
[1771305644582,1.22885802,86.01,85.981,1.27764256]
[1771305645760,9.49166112,86.01,85.982,11.63034123]
[1771305646178,1.22885802,86.029,85.991,1.24089234]
[1771305646361,8.2628031,86.02,85.983,1.24089234]
[1771305646573,1.22885802,86.019,85.99,8.2628031]
[1771305646773,1.22885802,86.019,85.991,1.24089234]
[1771305647274,1.22885802,86.029,85.991,1.24089234]
[1771305647865,8.2628031,86.02,85.992,12.86988108]
[1771305648095,1.22885802,86.019,85.992,12.86988108]
[1771305648280,1.22885802,86.019,85.98,8.2628031]
[1771305648281,1.22885802,86.019,85.98,11.63061177]
[1771305648487,1.22885802,86.009,85.98,11.63061177]
[1771305648784,1.22885802,86.009,85.98,19.89341487]
[1771305649087,1.22885802,86.026,85.991,1.24089234]
[1771305649977,1.22885802,86.026,85.993,1.28066261]
[1771305650788,1.26262416,86.019,85.992,7.16611879]
[1771305650987,8.2628031,86.0,85.963,1.35950546]
[1771305651193,8.2628031,85.98,85.963,1.35950546]
[1771305651495,8.2628031,85.98,85.951,1.35950546]
[1771305651676,8.2628031,85.99,85.951,1.35950546]
[1771305651987,8.2628031,85.99,85.953,11.63426523]
[1771305652184,8.2628031,85.99,85.954,1.35950546]
[1771305654190,8.2628031,85.99,85.956,1.35950546]
[1771305655486,8.2628031,85.99,85.95,8.3628031]
[1771305655487,8.2628031,85.97,85.951,11.63453595]
[1771305655987,8.2628031,85.98,85.951,11.63453595]
[1771305656193,8.2628031,85.99,85.954,1.35950546]
[1771305656393,8.29684282,85.99,85.954,1.35950546]
[1771305657373,8.2628031,86.0,85.961,1.35950546]
[1771305657893,8.2628031,86.01,85.971,1.35950546]
[1771305658393,8.2628031,86.02,85.981,1.35950546]
[1771305658601,8.2628031,86.03,85.991,1.35950546]
[1771305658901,8.2628031,86.02,85.991,1.35950546]
[1771305659105,8.2628031,86.04,86.001,1.35950546]
[1771305659471,8.2628031,86.04,86.003,1.35950546]
[1771305659675,11.62263624,86.039,86.003,1.35950546]
[1771305660278,8.2628031,86.06,86.021,1.35950546]
[1771305660513,8.2628031,86.06,86.031,1.35950546]
[1771305660681,8.2628031,86.05,86.031,1.35950546]
[1771305660880,0.05543109,86.049,86.011,1.35950546]
[1771305661076,11.61892231,86.067,86.002,11.62763656]
[1771305661077,8.2628031,86.03,86.002,11.62763656]
[1771305661280,8.2628031,86.02,86.002,11.62763656]
[1771305661579,8.2628031,86.01,85.981,1.35950546]
[1771305661793,8.2628031,86.01,85.986,1.35950546]
[1771305661994,8.2628031,86.02,85.991,1.35950546]
[1771305662207,8.2628031,86.03,85.991,1.35950546]
[1771305663902,8.2628031,86.03,85.993,1.35950546]
[1771305664906,11.62264993,86.039,86.001,1.35950546]
[1771305665199,8.2628031,86.04,86.001,1.35950546]
[1771305665393,8.2628031,86.03,86.001,1.35950546]
[1771305665898,8.2628031,86.03,86.003,1.35950546]
[1771305666096,0.0808079,86.041,86.003,1.35950546]
[1771305666097,8.2628031,86.04,86.003,1.35950546]
[1771305666305,19.8854028,86.04,86.003,1.35950546]
[1771305667782,8.2628031,86.06,86.021,1.35950546]
[1771305668904,8.2628031,86.06,86.031,1.35950546]
[1771305669105,8.2628031,86.05,86.011,16.46]
[1771305669290,8.2628031,86.05,86.012,1.35950546]
[1771305670301,8.2628031,86.05,86.021,1.35950546]
[1771305671178,0.10006647,86.058,86.021,1.35950546]
[1771305671388,11.61993516,86.059,86.021,1.35950546]
[1771305671588,17.42,86.072,86.013,40.69152336]
[1771305671589,8.2628031,86.07,86.031,1.35950546]
[1771305671993,8.2628031,86.08,86.041,1.35950546]
[1771305672179,8.2628031,86.08,86.043,1.35950546]
[1771305673001,8.2628031,86.08,86.051,1.35950546]
[1771305673309,8.2628031,86.08,86.052,1.35950546]
[1771305673515,8.2628031,86.09,86.052,1.35950546]
[1771305674498,11.61588588,86.089,86.053,11.62074535]
[1771305674706,11.61588588,86.089,86.054,1.397301]
[1771305675102,8.2628031,86.09,86.054,1.397301]
[1771305675895,11.61588588,86.089,86.054,1.397301]
[1771305676484,11.61588588,86.089,86.056,1.397301]
[1771305677113,8.2598789,86.11,86.071,1.397301]
[1771305677429,8.4598789,86.12,86.081,1.397301]
[1771305677591,0.13534848,86.099,86.062,1.397301]
[1771305677790,8.2598789,86.08,86.055,11.62047527]
[1771305678302,8.2598789,86.08,86.047,1.397301]
[1771305678503,11.61723533,86.079,86.047,1.397301]
[1771305678810,0.13861094,86.088,86.051,1.397301]
[1771305679113,8.2598789,86.08,86.051,1.397301]
[1771305679514,0.13861094,86.088,86.051,1.397301]
[1771305680189,11.61615574,86.087,86.051,1.397301]
[1771305680386,8.2598789,86.08,86.051,1.397301]
[1771305680794,11.76119328,86.087,86.053,1.397301]
[1771305681204,8.2598789,86.09,86.053,1.397301]
[1771305681409,8.2598789,86.1,86.061,1.397301]
[1771305681608,29.02996046,86.118,86.052,11.62088039]
[1771305681609,17.38,86.103,86.071,1.397301]
[1771305681792,19.87297258,86.11,86.071,1.397301]
[1771305681793,8.2598789,86.11,86.071,1.397301]
[1771305682112,8.2598789,86.1,86.071,1.397301]
[1771305682286,0.14818623,86.108,86.071,1.397301]
[1771305682492,11.61318793,86.109,86.071,1.397301]
[1771305682691,8.2598789,86.11,86.081,1.397301]
[1771305682897,8.2598789,86.11,86.083,1.397301]
[1771305685622,8.2598789,86.11,86.084,11.61656056]
[1771305686813,0.16340301,86.115,86.084,1.397301]
[1771305687011,8.2598789,86.11,86.084,1.397301]
[1771305688096,8.4598789,86.12,86.086,1.397301]
[1771305688497,8.4598789,86.12,86.077,11.61746976]
[1771305688498,0.16923122,86.109,86.077,11.61746976]
[1771305688899,0.16923122,86.109,86.078,1.397301]
[1771305690124,8.2598789,86.1,86.072,11.61809791]
[1771305691022,8.2598789,86.08,86.051,13.0182274]
[1771305691322,8.2598789,86.08,86.052,1.397301]
[1771305691714,8.2598789,86.09,86.052,1.397301]
[1771305692318,8.2598789,86.08,86.054,1.397301]
[1771305693602,8.2598789,86.09,86.054,1.397301]
[1771305694622,8.2598789,86.08,86.056,1.397301]
[1771305695312,0.18865855,86.091,86.056,1.397301]
[1771305695520,8.2598789,86.08,86.056,1.397301]
[1771305697500,8.2598789,86.08,86.057,11.62020521]
[1771305697905,3.3046432,86.08,86.057,11.62020521]
[1771305698927,3.3046432,86.09,86.058,1.397301]
[1771305700033,3.3046432,86.09,86.06,1.397301]
[1771305700639,29.03184314,86.113,86.059,11.61993516]
[1771305700640,3.3046432,86.11,86.071,1.397301]
[1771305700823,3.3046432,86.11,86.059,46.03063494]
[1771305700824,11.61138325,86.123,86.081,1.397301]
[1771305701127,3.5046432,86.13,86.091,1.397301]
[1771305701311,15.11500231,86.13,86.091,1.397301]
[1771305701915,8.45158674,86.13,86.091,1.397301]
[1771305702125,0.2,86.13,86.101,1.397301]
[1771305703527,0.2,86.13,86.103,1.397301]
[1771305703528,8.45158674,86.13,86.103,1.397301]
[1771305704427,0.2,86.13,86.103,1.397301]
[1771305704625,0.2,86.13,86.111,1.35950546]
[1771305704833,11.60790756,86.149,86.112,1.35950546]
[1771305705116,8.25158674,86.15,86.112,1.35950546]
[1771305705709,8.25158674,86.15,86.114,1.35950546]
[1771305706234,19.85931636,86.15,86.114,1.35950546]
[1771305708327,8.25158674,86.15,86.115,11.61237879]
[1771305708539,8.25158674,86.15,86.116,1.35950546]
[1771305709235,8.25158674,86.14,86.116,1.35950546]
[1771305709539,0.22516897,86.129,86.102,11.61403395]
[1771305709714,8.25158674,86.13,86.103,1.35950546]
[1771305710024,8.4789857,86.13,86.103,1.35950546]
[1771305710431,8.25158674,86.12,86.103,1.35950546]
[1771305710926,8.25158674,86.12,86.092,1.38854439]
[1771305711533,20.08939327,86.13,86.092,1.38854439]
[1771305712615,0.23387005,86.129,86.094,1.38854439]
[1771305714637,0.23387005,86.129,86.096,1.38854439]
[1771305715646,8.25158674,86.13,86.096,1.38854439]